bitfinex/quotes_SOLUSD_20241008
["timestamp","ask_amount","ask_price","bid_price","bid_amount"]
[1728430815979,4.58944457,143.45,143.44,6.9715]
[1728430818943,0.407818,143.45,143.44,6.9715]
[1728430819144,4.59085049,143.45,143.44,6.9715]
[1728430819846,4.59085049,143.45,143.43,17.4294]
[1728430820152,4.18303249,143.44,143.43,24.4012]
[1728430822658,4.18375197,143.44,143.43,24.4012]
[1728430829354,0.407818,143.45,143.43,24.4012]
[1728430829781,4.18179185,143.44,143.43,17.4294]
[1728430830077,4.18179185,143.44,143.4,17.4333]
[1728430830366,4.18179185,143.43,143.42,6.9725]
[1728430837960,4.18179185,143.43,143.42,30.749384]
[1728430839891,4.17732858,143.43,143.42,30.749384]
[1728430840558,4.17732858,143.43,143.42,43.81893401]
[1728430842354,0.407818,143.45,143.43,23.776884]
[1728430842549,0.407818,143.45,143.44,6.9715]
[1728430842755,4.58585141,143.45,143.44,6.9715]
[1728430843278,4.58588537,143.45,143.44,6.9715]
[1728430843464,4.58588537,143.45,143.44,8.36548426]
[1728430846874,4.58623134,143.45,143.44,8.36548426]
[1728430848881,0.407818,143.45,143.44,6.9715]
[1728430849084,0.407818,143.45,143.44,8.36544694]
[1728430851689,0.407818,143.45,143.44,21.43499695]
[1728430853696,0.407818,143.45,143.44,20.04105001]
[1728430856396,0.407818,143.45,143.44,6.9715]
[1728430863398,0.407818,143.45,143.44,45.21184634]
[1728430864979,0.407818,143.45,143.44,45.33733634]
[1728430865173,0.407818,143.45,143.44,65.46282634]
[1728430865374,1.8e-05,143.45,143.44,65.46282634]
[1728430869482,1.8e-05,143.45,143.44,81.20112634]
[1728430869801,1.8e-05,143.45,143.44,79.80721401]
[1728430888727,1.8e-05,143.45,143.44,50.999364]
[1728430888901,1.8e-05,143.45,143.44,26.9715]
[1728430889101,1.8e-05,143.45,143.44,40.04105001]
[1728430890226,1.8e-05,143.45,143.44,64.06891401]
[1728430890823,1.8e-05,143.45,143.44,63.94342401]
[1728430892823,1.8e-05,143.45,143.44,43.81793401]
[1728430893007,1.8e-05,143.45,143.44,6.9715]
[1728430894125,1.8e-05,143.45,143.44,30.748384]
[1728430904537,1.8e-05,143.45,143.44,6.9715]
[1728430908542,1.8e-05,143.45,143.43,17.4294]
[1728430908733,1.8e-05,143.45,143.42,6.9722]
[1728430914222,1.8e-05,143.45,143.4,30.50255001]
[1728430914543,1.8e-05,143.45,143.41,6.9728]
[1728430916137,6.971118,143.45,143.41,6.9728]
[1728430917744,6.971118,143.45,143.4,24.4064]
[1728430918035,6.9717,143.44,143.4,24.4064]
[1728430924329,1.8e-05,143.45,143.4,24.4064]
[1728430924534,1.8e-05,143.45,143.41,8.36703278]
[1728430926944,1.8e-05,143.45,143.41,6.9725]
[1728430928055,1.8e-05,143.45,143.41,8.36690603]
[1728430928226,1.8e-05,143.45,143.42,17.4308]
[1728430928429,1.8e-05,143.45,143.44,6.9715]
[1728430932130,1.8e-05,143.45,143.43,6.9719]
[1728430932859,1.8e-05,143.45,143.44,6.9715]
[1728430953168,1.8e-05,143.45,143.44,43.81793401]
[1728430953369,1.8e-05,143.45,143.44,59.14232401]
[1728430954153,1.8e-05,143.45,143.44,79.14232401]
[1728430959181,1.8e-05,143.45,143.44,79.26781401]
[1728430961758,1.8e-05,143.45,143.44,80.66146233]
[1728430963957,1.8e-05,143.45,143.44,79.26781401]
[1728430965770,1.8e-05,143.45,143.44,80.66146168]
[1728430966180,1.8e-05,143.45,143.44,79.26781401]
[1728430968178,1.8e-05,143.45,143.44,80.66141701]
[1728430968376,1.8e-05,143.45,143.44,79.26781401]
[1728430968575,1.8e-05,143.45,143.44,80.66141731]
[1728430969685,1.8e-05,143.45,143.44,79.26781401]
[1728430971672,1.8e-05,143.45,143.44,80.6614185]
[1728430972076,1.8e-05,143.45,143.44,79.26781401]
[1728430974769,1.8e-05,143.45,143.44,79.26781401]
[1728430978776,1.8e-05,143.45,143.44,63.94342401]
[1728430978986,1.8e-05,143.45,143.44,50.748384]
[1728430979291,1.8e-05,143.45,143.44,63.81793401]
[1728430982087,1.8e-05,143.45,143.44,65.33721721]
[1728430982289,1.8e-05,143.45,143.44,63.94342401]
[1728431023816,1.8e-05,143.45,143.44,64.06891401]
[1728431035503,1.8e-05,143.45,143.44,65.46258809]
[1728431036339,1.8e-05,143.45,143.44,64.06891401]
[1728431038033,6.3709,143.52,143.44,65.46258891]
[1728431038211,6.3709,143.52,143.51,6.9681]
[1728431038529,6.3709,143.52,143.51,8.36153814]
[1728431038709,6.3709,143.52,143.51,6.9681]
[1728431044617,6.3709,143.52,143.5,17.4209]
[1728431044816,6.3709,143.52,143.5,24.3894]
[1728431055937,6.3709,143.52,143.5,17.4209]
[1728431056152,6.3709,143.52,143.51,6.9681]
[1728431056519,15.0391,143.54,143.5,17.4209]
[1728431056724,15.0391,143.54,143.52,6.9676]
[1728431061642,22.0058,143.54,143.5,24.3894]
[1728431066525,15.0391,143.54,143.5,24.3894]
[1728431069244,6.9663,143.55,143.5,24.3894]
[1728431069435,6.9663,143.55,143.51,6.968]
[1728431071191,6.9663,143.55,143.5,17.4209]
[1728431071335,6.9663,143.55,143.5,24.3894]
[1728431071846,6.9672,143.53,143.45,39.677684]
[1728431072143,6.9672,143.53,143.48,6.9694]
[1728431072352,15.9505,143.54,143.47,17.4247]
[1728431072535,15.9505,143.54,143.46,6.9702]
[1728431072536,6.9688,143.5,143.46,6.9702]
[1728431072851,6.9681,143.51,143.46,6.9702]
[1728431075233,23.776884,143.53,143.46,6.9702]
[1728431075435,6.9687,143.5,143.46,6.9702]
[1728431081862,6.9692,143.49,143.45,6.971]
[1728431082064,6.9701,143.47,143.43,6.9716]
[1728431082867,15.5042,143.5,143.43,6.9716]
[1728431083047,6.9697,143.48,143.43,6.9716]
[1728431085145,6.9697,143.48,143.42,1.39432855]
[1728431085454,22.4728,143.5,143.46,6.9705]
[1728431086763,22.4728,143.5,143.45,6.9709]
[1728431086971,6.9692,143.49,143.45,6.9709]
[1728431091244,6.9692,143.49,143.43,17.4296]
[1728431091448,6.9692,143.49,143.44,6.9714]
[1728431092274,6.9692,143.49,143.45,6.971]
[1728431092866,15.5042,143.5,143.45,6.971]
[1728431093072,22.4729,143.5,143.46,6.9705]
[1728431094449,22.4729,143.5,143.45,6.9709]
[1728431100472,6.9687,143.5,143.44,1.39413546]
[1728431100656,6.9687,143.5,143.46,6.9704]
[1728431100861,6.9682,143.51,143.46,6.9704]
[1728431108190,6.9687,143.5,143.46,6.9704]
[1728431110592,6.4824,143.52,143.46,6.9704]
[1728431110790,6.9682,143.51,143.47,6.97]
[1728431111287,6.9678,143.52,143.48,6.9695]
[1728431111864,6.4644,143.55,143.49,6.9689]
[1728431111865,6.9672,143.53,143.49,6.9689]
[1728431112063,6.9676,143.52,143.48,6.9695]
[1728431112579,8.47561408,143.56,143.49,17.422]
[1728431112767,6.9667,143.54,143.5,6.9685]
[1728431113386,74.23844543,143.58,143.51,6.9681]
[1728431113387,6.9662,143.55,143.51,6.9681]
[1728431113571,6.9662,143.55,143.5,6.9685]
[1728431115866,6.9667,143.54,143.5,6.9685]
[1728431121580,38.52071726,143.58,143.5,6.9685]
[1728431121790,6.9663,143.55,143.5,6.9685]
[1728431122487,6.9663,143.55,143.51,6.968]
[1728431122693,6.9658,143.56,143.51,6.968]
[1728431124494,0.850952,143.59,143.56,6.9656]
[1728431124694,0.850952,143.59,143.54,14.46264161]
[1728431124882,0.850952,143.59,143.55,6.9658]
[1728431125192,0.850952,143.59,143.55,17.415]
[1728431125398,0.850952,143.59,143.57,17.4125]
[1728431125572,0.850952,143.59,143.58,6.9647]
[1728431130705,0.850952,143.59,143.58,20.03425001]
[1728431131304,0.850952,143.59,143.58,6.9647]
[1728431134082,0.850952,143.59,143.57,39.5736]
[1728431134292,0.850952,143.59,143.57,32.6085]
[1728431135188,0.850952,143.59,143.58,6.9647]
[1728431142715,0.850952,143.59,143.53,16.5601]
[1728431142899,0.850952,143.59,143.55,6.966]
[1728431143996,0.850952,143.59,143.56,6.9656]
[1728431144184,0.850952,143.59,143.58,6.9647]
[1728431147615,0.850952,143.59,143.56,17.4136]
[1728431147798,0.850952,143.59,143.56,24.379]
[1728431150705,0.850952,143.59,143.56,17.4136]
[1728431150910,0.850952,143.59,143.57,6.9651]
[1728431161624,0.850952,143.59,143.56,24.3791]
[1728431163029,0.850952,143.59,143.56,17.4136]
[1728431163228,0.850952,143.59,143.58,6.9647]
[1728431167724,0.850952,143.59,143.58,20.03425001]
[1728431168226,0.850952,143.59,143.58,43.81113401]
[1728431178819,0.350952,143.59,143.58,43.81113401]
[1728431184212,0.350952,143.59,143.58,6.9647]
[1728431184429,0.350952,143.59,143.57,6.9651]
[1728431184617,0.350952,143.59,143.58,6.9647]
[1728431185633,0.350952,143.59,143.56,30.48315001]
[1728431185634,0.350952,143.59,143.56,17.4136]
[1728431185845,0.350952,143.59,143.57,13.06955001]
[1728431186322,0.350952,143.59,143.58,6.9647]
[1728431192950,0.350952,143.59,143.56,17.4136]
[1728431193118,0.350952,143.59,143.57,6.9651]
[1728431193319,0.350952,143.59,143.58,6.9647]
[1728431203328,0.350952,143.59,143.58,43.81113401]
[1728431207447,0.350952,143.59,143.58,43.93662401]
[1728431209549,0.350952,143.59,143.58,45.32901508]
[1728431211551,0.350952,143.59,143.58,43.93662401]
[1728431213554,0.350952,143.59,143.58,59.65501401]
[1728431214331,0.350952,143.59,143.58,79.65501401]
[1728431219455,6.1985,143.67,143.66,6.9608]
[1728431219656,16.5347,143.68,143.66,6.9608]
[1728431220148,16.5347,143.68,143.65,17.4028]
[1728431220360,23.4946,143.68,143.65,17.4028]
[1728431220674,16.5347,143.68,143.65,17.4028]
[1728431226360,16.5347,143.68,143.64,6.9615]
[1728431229767,16.5347,143.68,143.62,17.4062]
[1728431229970,23.4949,143.68,143.63,6.9621]
[1728431233267,23.4949,143.68,143.64,6.9616]
[1728431235880,16.5347,143.68,143.65,6.9612]
[1728431236080,6.9595,143.69,143.65,6.9612]
[1728431236385,13.5381,143.7,143.65,6.9612]
[1728431237876,13.5381,143.7,143.64,17.4042]
[1728431238073,13.5381,143.7,143.66,6.9608]
[1728431238284,13.5381,143.7,143.65,6.9612]
[1728431240972,6.9594,143.69,143.65,6.9612]
[1728431243982,6.9594,143.69,143.64,17.4042]
[1728431244177,6.5791,143.7,143.61,17.4078]
[1728431244374,6.9612,143.66,143.62,6.9626]
[1728431245189,6.9605,143.67,143.62,6.9626]
[1728431246192,6.9605,143.67,143.63,6.9622]
[1728431247791,6.9603,143.68,143.64,6.9617]
[1728431249896,6.9595,143.69,143.64,6.9617]
[1728431251092,6.9595,143.69,143.65,6.9613]
[1728431252179,15.4422,143.72,143.65,17.403]
[1728431252395,6.9586,143.71,143.67,6.9603]
[1728431255799,22.4002,143.72,143.65,17.403]
[1728431255983,22.4002,143.72,143.68,6.9598]
[1728431257601,15.4422,143.72,143.67,6.9602]
[1728431257900,6.9585,143.71,143.65,17.403]
[1728431258473,6.9585,143.71,143.66,6.9607]
[1728431260801,15.4422,143.72,143.68,6.9598]
[1728431260802,22.4003,143.72,143.68,6.9598]
[1728431261000,22.4003,143.72,143.65,17.403]
[1728431261205,22.4003,143.72,143.67,6.9602]
[1728431262386,6.9585,143.71,143.67,6.9602]
[1728431268409,6.959,143.7,143.66,6.9607]
[1728431268587,6.959,143.7,143.65,17.403]
[1728431268788,6.959,143.7,143.65,24.3642]
[1728431269202,15.4422,143.72,143.65,24.3642]
[1728431269383,6.9598,143.69,143.65,17.403]
[1728431271106,15.4422,143.72,143.66,1.39219584]
[1728431271310,6.959,143.7,143.66,8.35299584]
[1728431272791,6.959,143.7,143.66,6.9608]
[1728431273194,6.959,143.7,143.66,8.35282773]
[1728431273889,22.4003,143.72,143.66,1.39202773]
[1728431274106,6.9585,143.71,143.67,6.9602]
[1728431274990,7.26691439,143.73,143.65,23.776884]
[1728431275201,7.808052,143.74,143.69,6.9593]
[1728431279417,0.850952,143.74,143.67,24.3608]
[1728431279712,6.9583,143.72,143.67,24.3608]
[1728431280098,6.9583,143.72,143.68,6.9597]
[1728431280509,6.9583,143.72,143.67,24.3607]
[1728431280718,6.9585,143.71,143.67,24.3607]
[1728431284692,0.850952,143.74,143.65,36.84643401]
[1728431284892,24.471552,143.74,143.65,23.776884]
[1728431285096,6.9595,143.69,143.65,30.738084]
[1728431287897,6.9599,143.68,143.64,17.404]
[1728431288106,6.9598,143.69,143.64,6.9618]
[1728431289617,7.27790732,143.71,143.64,6.9618]
[1728431289914,61.55921744,143.72,143.64,6.9618]
[1728431290102,6.9595,143.69,143.64,6.9618]
[1728431290710,6.9595,143.69,143.65,6.9613]
[1728431292011,6.9599,143.68,143.63,24.3676]
[1728431293110,68.836868,143.72,143.63,17.4054]
[1728431293312,6.9594,143.69,143.64,6.9614]
[1728431294429,68.836868,143.72,143.63,17.4054]
[1728431294616,6.9607,143.67,143.63,24.3675]
[1728431294928,6.9599,143.69,143.64,6.9618]
[1728431295518,51.441368,143.72,143.63,17.4054]
[1728431295715,6.9592,143.7,143.66,6.9608]
[1728431296643,38.92644921,143.72,143.66,6.9608]
[1728431296813,6.9586,143.71,143.66,6.9608]
[1728431298436,6.9591,143.7,143.66,6.9608]
[1728431300321,22.60469865,143.72,143.67,6.9603]
[1728431300523,22.60469865,143.72,143.65,17.4026]
[1728431300827,22.60469865,143.72,143.67,6.9602]
[1728431301420,22.60469865,143.72,143.66,16.5291]
[1728431301726,15.64669865,143.72,143.68,6.9595]
[1728431302743,22.60479865,143.72,143.68,6.9595]
[1728431303232,15.64669865,143.72,143.68,6.9595]
[1728431303416,15.64669865,143.72,143.69,6.9593]
[1728431304834,15.64669865,143.72,143.69,8.3510781]
[1728431305930,15.64669865,143.72,143.69,6.9593]
[1728431312044,15.64669865,143.72,143.68,6.9597]
[1728431312425,15.64669865,143.72,143.69,6.959]
[1728431312621,15.64669865,143.72,143.67,17.4004]
[1728431312926,15.64669865,143.72,143.7,6.9588]
[1728431314046,15.64669865,143.72,143.69,17.398]
[1728431314349,15.64669865,143.72,143.69,24.3574]
[1728431314842,6.9575,143.73,143.69,24.3574]
[1728431321056,0.850952,143.74,143.71,6.9583]
[1728431321343,0.850952,143.74,143.7,6.9588]
[1728431321720,7.808052,143.74,143.7,6.9588]
[1728431322124,0.850952,143.74,143.7,1.39171671]
[1728431322335,0.850952,143.74,143.71,6.9582]
[1728431337040,7.807952,143.74,143.7,6.9589]
[1728431340357,0.850952,143.74,143.7,6.9589]
[1728431342947,0.850952,143.74,143.71,6.9584]
[1728431364475,0.850952,143.74,143.7,1.3915293]
[1728431364785,0.850952,143.74,143.72,6.9576]
[1728431373975,0.850952,143.74,143.73,8.34874149]
[1728431374968,0.850952,143.74,143.73,6.9574]
[1728431400619,0.850952,143.74,143.72,6.9579]
[1728431400914,0.850952,143.74,143.72,8.34931883]
[1728431401496,0.850952,143.74,143.72,6.9579]
[1728431402014,0.850952,143.74,143.71,24.3541]
[1728431402220,0.850952,143.74,143.72,6.9576]
[1728431403416,0.850952,143.74,143.73,8.34868537]
[1728431404718,0.850952,143.74,143.73,6.9574]
[1728431414207,0.850952,143.74,143.73,20.02695001]
[1728431427912,0.850952,143.74,143.73,6.9574]
[1728431462853,0.850952,143.74,143.73,20.02695001]
[1728431475743,0.850952,143.74,143.73,6.9574]
[1728431478568,0.850952,143.74,143.71,17.3957]
[1728431479253,0.850952,143.74,143.73,6.9574]
[1728431481375,0.850952,143.74,143.73,6.9574]
[1728431485566,0.850952,143.74,143.73,8.34860629]
[1728431486081,0.850952,143.74,143.73,6.9574]
[1728431513375,0.850952,143.74,143.72,6.9578]
[1728431513777,0.850952,143.74,143.71,17.3957]
[1728431513982,0.850952,143.74,143.72,6.9579]
[1728431521208,0.850952,143.74,143.71,24.354]
[1728431521788,7.807952,143.74,143.68,17.3991]
[1728431522300,7.807952,143.74,143.69,6.9593]
[1728431522796,0.850952,143.74,143.66,28.91275001]
[1728431522997,0.850952,143.74,143.67,1.39185123]
[1728431523305,0.850952,143.74,143.66,28.91275001]
[1728431523818,0.850952,143.74,143.72,6.9574]
[1728431527109,0.850952,143.74,143.71,17.3953]
[1728431527311,0.850952,143.74,143.71,24.3536]
[1728431528831,0.850952,143.74,143.72,6.9576]
[1728431535124,0.850952,143.74,143.68,17.399]
[1728431535313,7.808352,143.74,143.69,6.959]
[1728431539212,6.9576,143.73,143.69,6.959]
[1728431540205,0.850952,143.74,143.68,17.399]
[1728431540407,0.850952,143.74,143.68,24.3587]
[1728431540717,6.9576,143.73,143.68,24.3587]
[1728431541506,0.850952,143.74,143.68,17.399]
[1728431541839,16.757652,143.74,143.68,17.399]
[1728431543129,6.9585,143.71,143.68,17.399]
[1728431544909,6.9585,143.71,143.63,22.5678]
[1728431545215,6.9585,143.71,143.67,6.9603]
[1728431551344,6.4863,143.73,143.65,24.364]
[1728431551517,6.9596,143.69,143.65,24.364]
[1728431551724,6.9596,143.69,143.65,17.4028]
[1728431552117,6.9599,143.68,143.65,17.4028]
[1728431552622,6.9599,143.68,143.64,6.9617]
[1728431554213,23.4576,143.68,143.63,6.9622]
[1728431556544,6.9604,143.67,143.62,24.3692]
[1728431558741,6.9612,143.66,143.62,17.4065]
[1728431562947,6.9616,143.65,143.6,6.9636]
[1728431563325,22.5804,143.68,143.59,17.41]
[1728431563632,6.9621,143.64,143.6,6.9637]
[1728431564148,23.776884,143.67,143.59,17.41]
[1728431564341,6.9615,143.65,143.61,6.9632]
[1728431565142,23.776884,143.67,143.61,6.9632]
[1728431565358,22.5804,143.68,143.62,6.9624]
[1728431565524,6.961,143.66,143.62,6.9624]
[1728431566134,22.5804,143.68,143.62,6.9624]
[1728431566325,23.458,143.68,143.62,6.9624]
[1728431567150,6.9603,143.68,143.61,18.80014602]
[1728431567326,6.9603,143.68,143.63,6.9621]
[1728431568457,6.9595,143.69,143.64,6.9617]
[1728431570258,1.21103735,143.71,143.64,6.9617]
[1728431570551,6.9599,143.68,143.64,6.9617]
[1728431578454,6.9599,143.68,143.63,24.3674]
[1728431589464,23.776884,143.71,143.63,24.3674]
[1728431589657,6.9604,143.67,143.63,24.3674]
[1728431596075,35.28955356,143.71,143.65,17.4028]
[1728431596239,35.28955356,143.71,143.66,1.39197829]
[1728431596240,7.22148564,143.71,143.66,1.39197829]
[1728431596440,1.21159011,143.73,143.65,32.925]
[1728431596747,6.9595,143.69,143.65,39.8862]
[1728431598447,6.9599,143.68,143.65,17.4028]
[1728431603971,6.9594,143.69,143.65,25.7562881]
[1728431604355,6.9594,143.69,143.65,24.3641]
[1728431607157,6.9594,143.69,143.65,17.4028]
[1728431607361,6.9599,143.68,143.61,15.8916]
[1728431607571,6.9599,143.68,143.63,6.9619]
[1728431612788,6.9599,143.68,143.63,8.35419931]
[1728431613404,6.9599,143.68,143.63,1.39229931]
[1728431613607,6.9599,143.68,143.64,6.9617]
[1728431618189,1.2117405,143.7,143.62,17.4066]
[1728431618190,6.961,143.66,143.62,17.4066]
[1728431618389,7.3740405,143.7,143.62,17.4066]
[1728431618390,6.9613,143.65,143.62,17.4066]
[1728431619313,6.9608,143.66,143.62,24.3694]
[1728431620319,6.9605,143.67,143.62,24.3694]
[1728431623619,14.58680531,143.7,143.63,6.9622]
[1728431623824,6.9595,143.69,143.63,1.39229864]
[1728431625006,6.9595,143.69,143.65,6.9612]
[1728431627428,6.9595,143.69,143.64,6.9617]
[1728431633006,6.9602,143.68,143.64,6.9617]
[1728431637417,6.9605,143.67,143.63,6.9621]
[1728431640214,6.9605,143.67,143.62,24.3692]
[1728431641035,6.961,143.66,143.62,24.3692]
[1728431641228,1.21183339,143.69,143.62,17.4066]
[1728431641731,6.9614,143.65,143.62,17.4066]
[1728431642264,1.21183339,143.69,143.63,6.9621]
[1728431643231,6.9604,143.67,143.63,6.9621]
[1728431644833,1.21183339,143.69,143.62,24.3693]
[1728431645138,6.961,143.66,143.62,24.3693]
[1728431645525,1.21183339,143.69,143.61,15.8916]
[1728431645734,6.9615,143.65,143.61,22.8548]
[1728431646334,6.9621,143.64,143.6,6.9637]
[1728431646628,6.9614,143.65,143.6,6.9637]
[1728431649960,69.49100388,143.68,143.6,6.9637]
[1728431650168,6.962,143.64,143.6,6.9637]
[1728431656367,6.962,143.64,143.59,24.3739]
[1728431664888,6.9629,143.62,143.59,17.4098]
[1728431667298,6.9619,143.64,143.6,6.9637]
[1728431668395,6.9615,143.65,143.61,6.9632]
[1728431669000,6.9615,143.65,143.6,6.9637]
[1728431669186,6.9619,143.64,143.6,6.9637]
[1728431673479,1.21185629,143.66,143.59,17.4098]
[1728431673686,6.9615,143.65,143.61,6.9632]
[1728431675083,6.9615,143.65,143.6,6.9636]
[1728431677190,6.9624,143.63,143.59,24.3739]
[1728431677395,6.9621,143.64,143.59,24.3739]
[1728431686111,6.9615,143.65,143.61,6.9631]
[1728431693198,6.9615,143.65,143.6,8.35624234]
[1728431698519,35.3337074,143.67,143.61,17.4078]
[1728431698720,7.17297139,143.67,143.64,6.9617]
[1728431699024,42.10685378,143.71,143.64,6.9617]
[1728431699192,6.9602,143.68,143.63,24.3676]
[1728431701517,6.9602,143.68,143.64,8.35399906]
[1728431703749,6.9602,143.68,143.64,6.9618]
[1728431712320,6.9604,143.67,143.63,17.4054]
[1728431713509,40.89566833,143.71,143.6,21.7478]
[1728431713714,6.9612,143.66,143.61,6.9632]
[1728431715714,23.776884,143.68,143.6,32.7614]
[1728431716025,6.9615,143.65,143.6,39.725]
[1728431716334,6.9615,143.65,143.6,24.3723]
[1728431720152,6.962,143.64,143.6,24.3723]
[1728431722549,6.962,143.64,143.6,17.4087]
[1728431724755,1.21145349,143.66,143.59,6.9641]
[1728431724924,6.9624,143.63,143.57,24.007]
[1728431725244,6.9629,143.62,143.58,6.9646]
[1728431727451,6.9629,143.62,143.57,30.972]
[1728431727660,6.9638,143.6,143.56,22.9926]
[1728431729833,6.9638,143.6,143.56,16.027]
[1728431731854,6.9638,143.6,143.56,22.9926]
[1728431733052,6.9648,143.58,143.56,16.027]
[1728431733230,6.9643,143.59,143.54,17.4161]
[1728431733735,6.9643,143.59,143.54,24.3826]
[1728431734333,6.9658,143.56,143.52,6.9676]
[1728431734631,6.9653,143.57,143.52,6.9676]
[1728431735143,16.5605,143.58,143.53,6.9671]
[1728431735144,6.9648,143.58,143.53,6.9671]
[1728431740861,6.9648,143.58,143.54,6.9665]
[1728431742968,6.9648,143.58,143.54,8.35967463]
[1728431743165,6.9648,143.58,143.54,6.9665]
[1728431744458,6.9648,143.58,143.54,8.3596764]
[1728431745764,6.9648,143.58,143.54,6.9665]
[1728431746071,6.9648,143.58,143.54,8.35967386]
[1728431746374,6.9648,143.58,143.54,6.9665]
[1728431748446,6.9648,143.58,143.53,17.4174]
[1728431748652,6.9654,143.57,143.53,24.3845]
[1728431750679,23.776884,143.6,143.53,17.4174]
[1728431750867,6.9658,143.56,143.53,17.4174]
[1728431757671,25.80295336,143.61,143.54,1.39331345]
[1728431757873,25.80295336,143.61,143.53,17.4174]
[1728431758473,6.9651,143.58,143.53,24.3844]
[1728431760375,6.9653,143.57,143.53,24.3844]
[1728431762584,6.9658,143.56,143.52,6.9675]
[1728431763685,6.9665,143.55,143.51,6.968]
[1728431764070,6.9665,143.55,143.5,39.7802]
[1728431766473,25.81496833,143.59,143.5,39.7802]
[1728431766474,6.9667,143.54,143.5,39.7802]
[1728431769782,25.81496833,143.59,143.5,32.8118]
[1728431769987,6.9662,143.55,143.51,8.36149359]
[1728431771284,6.9662,143.55,143.51,6.968]
[1728431774585,25.81496833,143.59,143.52,6.9676]
[1728431774586,6.9657,143.57,143.52,6.9676]
[1728431776067,6.9657,143.56,143.52,6.9676]
[1728431777391,6.9657,143.56,143.5,32.8118]
[1728431777392,6.9666,143.55,143.5,39.78]
[1728431777769,6.9666,143.55,143.51,6.968]
[1728431778375,6.9666,143.55,143.52,1.3933456]
[1728431779497,18.62268478,143.59,143.52,1.3933456]
[1728431779498,6.9658,143.56,143.52,1.3933456]
[1728431781597,1.21168478,143.59,143.52,18.8120456]
[1728431781800,6.9647,143.58,143.54,6.9666]
[1728431785797,1.21202691,143.61,143.53,6.9671]
[1728431785798,6.9652,143.57,143.53,6.9671]
[1728431788787,1.21202691,143.61,143.52,17.4187]
[1728431788788,17.4099,143.6,143.52,17.4187]
[1728431790102,6.9662,143.55,143.52,17.4187]
[1728431790405,1.21202691,143.61,143.5,22.3596]
[1728431790406,6.9669,143.54,143.5,22.3596]
[1728431792801,6.9669,143.54,143.5,23.75307842]
[1728431793610,6.9669,143.54,143.5,22.3596]
[1728431793792,6.9662,143.55,143.5,22.3596]
[1728431793980,6.9662,143.55,143.51,1.39336572]
[1728431794304,6.9662,143.55,143.51,6.9681]
[1728431794608,17.4122,143.58,143.51,6.9681]
[1728431794783,6.9657,143.56,143.51,6.9681]
[1728431794985,6.9657,143.56,143.52,1.39329203]
[1728431795511,6.9657,143.56,143.51,6.9681]
[1728431796003,6.9663,143.55,143.5,15.391]
[1728431796182,6.9668,143.54,143.5,15.391]
[1728431804409,24.98895939,143.57,143.5,15.391]
[1728431804596,6.9662,143.55,143.51,6.9677]
[1728431806489,1.21207539,143.57,143.5,15.391]
[1728431806714,6.9658,143.56,143.52,6.9676]
[1728431806892,6.9658,143.56,143.51,6.9679]
[1728431807309,32.7703,143.58,143.51,6.9679]
[1728431807506,6.9662,143.55,143.51,6.9679]
[1728431814096,6.9648,143.58,143.54,6.9666]
[1728431814718,29.77304447,143.62,143.55,1.39312601]
[1728431815009,6.9643,143.59,143.55,8.35932601]
[1728431815725,6.9643,143.59,143.55,6.9662]
[1728431819014,6.9643,143.59,143.56,1.39301908]
[1728431819203,6.9639,143.6,143.56,8.35851908]
[1728431819407,6.9639,143.6,143.56,6.9655]
[1728431819914,6.9634,143.61,143.57,1.39282697]
[1728431820128,6.9634,143.61,143.57,8.35792697]
[1728431820298,6.9624,143.63,143.58,8.35740404]
[1728431820495,6.9624,143.63,143.59,6.9641]
[1728431820696,35.60320364,143.66,143.57,30.48165001]
[1728431820903,6.9629,143.62,143.57,30.48165001]
[1728431821129,23.07537385,143.66,143.57,17.4121]
[1728431821130,6.9635,143.61,143.57,17.4121]